bitfinex-derivatives/quotes_ETHF0:USTF0_20250905
["timestamp","ask_amount","ask_price","bid_price","bid_amount"]
[1757097316624,0.7178,4302.6,4302.5,0.1994]
[1757097316827,0.7178,4302.6,4302.0,0.1168]
[1757097316828,1.32202672,4302.6,4302.0,0.1168]
[1757097317125,0.1945,4302.1,4302.0,0.5212]
[1757097317633,0.1945,4302.1,4302.0,0.8427]
[1757097318131,3.2078,4302.8,4302.4,0.3215]
[1757097318132,3.9256,4302.8,4302.4,0.3215]
[1757097318332,0.708,4302.6,4302.5,0.2022]
[1757097319032,0.708,4302.3,4302.2,0.5175]
[1757097319332,3.9158,4302.3,4302.2,0.5175]
[1757097319925,3.9158,4302.3,4302.2,0.7324]
[1757097320134,3.9158,4302.3,4302.2,0.5175]
[1757097320433,3.9158,4302.3,4302.2,0.7324]
[1757097320933,3.9158,4302.3,4302.2,0.5175]
[1757097321127,3.9158,4302.3,4302.2,0.7324]
[1757097324427,3.6229,4302.3,4302.2,0.7324]
[1757097324723,0.2929,4302.7,4302.2,0.7324]
[1757097324924,3.5007,4303.1,4302.8,0.4171]
[1757097325129,3.5007,4303.6,4302.8,0.7324]
[1757097325722,3.2078,4303.6,4302.8,0.7324]
[1757097325927,0.2929,4303.4,4302.8,0.7324]
[1757097327235,1.02418,4302.9,4302.8,0.7324]
[1757097328335,1.31708,4302.9,4302.8,0.7324]
[1757097328835,1.02418,4302.9,4302.8,0.7324]
[1757097329035,0.82398,4302.9,4302.8,0.7324]
[1757097330541,1.31708,4302.9,4302.8,0.7324]
[1757097330931,0.2929,4302.4,4302.1,0.3153]
[1757097331132,0.5436,4302.5,4302.0,0.5175]
[1757097331133,0.708,4302.1,4302.0,0.5175]
[1757097331339,0.708,4301.6,4301.5,0.5175]
[1757097331732,0.708,4301.6,4301.1,3.5231]
[1757097332034,0.708,4301.2,4301.1,3.9402]
[1757097332227,0.708,4301.2,4301.1,3.41]
[1757097332539,0.708,4301.2,4300.7,0.3153]
[1757097332739,0.708,4301.2,4300.6,0.3153]
[1757097333334,0.2149,4301.2,4301.1,0.7324]
[1757097334833,0.2929,4301.6,4301.2,0.3153]
[1757097335034,3.2078,4301.9,4301.8,0.7324]
[1757097335035,0.4151,4301.9,4301.8,0.7324]
[1757097335631,0.708,4301.9,4301.8,0.7324]
[1757097336038,0.2929,4302.5,4301.8,0.4171]
[1757097336237,0.2149,4302.5,4302.4,0.4171]
[1757097336443,0.60908,4302.9,4302.8,0.4171]
[1757097336641,0.60908,4302.9,4302.8,0.7324]
[1757097341044,0.82398,4302.9,4302.8,0.7324]
[1757097342943,0.60908,4302.9,4302.8,0.7324]
[1757097343445,0.82398,4302.9,4302.8,0.7324]
[1757097345138,0.60908,4302.9,4302.8,0.7324]
[1757097345647,1.02418,4302.9,4302.8,0.7324]
[1757097345850,1.31708,4302.9,4302.8,0.7324]
[1757097346445,1.02418,4302.9,4302.8,0.7324]
[1757097346746,0.60908,4302.9,4302.8,4.7324]
[1757097346943,3.2078,4303.5,4302.8,4.6495]
[1757097347142,3.2078,4303.5,4303.4,0.4171]
[1757097347347,3.2078,4303.5,4303.4,0.7324]
[1757097348145,0.1285,4304.0,4303.5,0.3153]
[1757097348347,0.7126,4303.8,4303.7,0.4146]
[1757097348543,1.31644815,4303.8,4303.7,0.4146]
[1757097350444,0.7126,4303.8,4303.7,0.7079]
[1757097350643,0.7126,4303.8,4303.7,0.4146]
[1757097351647,0.1286,4303.5,4303.3,3.2078]
[1757097351847,0.8412,4303.5,4303.4,0.2104]
[1757097352146,0.8412,4303.5,4303.4,0.4146]
[1757097356353,0.8412,4303.5,4303.4,0.7079]
[1757097357455,0.8412,4303.5,4303.3,3.2078]
[1757097357643,0.3172,4303.4,4303.3,3.2078]
[1757097357848,0.7126,4303.4,4303.3,3.4182]
[1757097358452,0.7126,4303.4,4303.3,3.6224]
[1757097359456,0.1286,4303.5,4302.9,0.2104]
[1757097359457,0.1286,4303.0,4302.9,0.2104]
[1757097359653,0.8412,4303.0,4302.9,0.2104]
[1757097359966,0.8412,4303.0,4302.9,0.7079]
[1757097360151,0.3172,4302.9,4302.8,3.2078]
[1757097360353,0.7126,4302.9,4302.8,3.4182]
[1757097360550,0.7126,4302.9,4302.8,3.6224]
[1757097360752,0.3172,4303.4,4302.8,3.6224]
[1757097360950,0.3172,4303.4,4303.3,0.7079]
[1757097360951,0.5112,4303.4,4303.3,0.7079]
[1757097361355,0.7126,4303.4,4303.3,0.7079]
[1757097361753,0.5112,4303.4,4303.3,0.4146]
[1757097362057,0.5112,4303.4,4303.3,3.9157]
[1757097363151,0.7126,4303.4,4303.3,3.6224]
[1757097363457,0.7126,4303.4,4303.3,3.9157]
[1757097364178,0.1285,4304.0,4303.4,0.2933]
[1757097364179,0.3172,4303.9,4303.4,0.2933]
[1757097364358,0.1285,4304.5,4303.0,0.0328]
[1757097364359,0.3172,4304.4,4303.9,0.2933]
[1757097364556,0.7126,4304.4,4304.3,0.4146]
[1757097364957,0.7126,4304.4,4304.3,3.6224]
[1757097365155,0.7126,4304.4,4304.3,3.9157]
[1757097365963,0.5112,4304.4,4304.3,3.9157]
[1757097366660,0.7126,4304.4,4304.3,3.4182]
[1757097367054,0.7126,4304.4,4303.7,3.2078]
[1757097367254,0.5112,4303.8,4303.7,3.9157]
[1757097367654,0.1285,4304.5,4303.7,3.9157]
[1757097367856,0.1285,4304.5,4303.8,0.2933]
[1757097368057,0.7126,4304.4,4304.3,0.2104]
[1757097368263,0.7126,4304.4,4304.3,0.4146]
[1757097368857,0.7126,4304.4,4303.8,0.2933]
[1757097369459,0.3172,4304.9,4304.4,0.2933]
[1757097369666,0.8412,4305.0,4304.5,0.2933]
[1757097369865,0.524,4305.0,4304.2,3.5011]
[1757097370069,0.1286,4305.0,4304.2,3.5011]
[1757097370364,0.92148946,4304.9,4304.2,3.5011]
[1757097370565,0.1286,4305.0,4304.2,3.5011]
[1757097370764,0.3172,4304.9,4304.2,3.5011]
[1757097370961,0.7126,4304.9,4304.8,0.4146]
[1757097371163,0.7126,4304.9,4304.8,0.7079]
[1757097372162,0.5112,4304.9,4304.8,0.7079]
[1757097373863,0.7126,4304.9,4304.8,0.7079]
[1757097376165,0.7126,4304.9,4304.8,0.4146]
[1757097378776,0.7126,4304.9,4304.8,0.731]
[1757097379275,0.7126,4304.9,4304.8,0.4146]
[1757097380170,0.7126,4304.9,4304.8,0.731]
[1757097380465,0.7126,4304.9,4304.8,0.4146]
[1757097381273,0.3222,4304.8,4304.7,3.2078]
[1757097381473,0.7353,4304.8,4304.7,3.2078]
[1757097381970,0.4131,4304.8,4304.2,3.2078]
[1757097382173,0.1986,4304.3,4304.2,3.407]
[1757097382471,0.7353,4304.3,4304.2,3.6069]
[1757097382978,0.7353,4304.3,4304.2,3.9233]
[1757097384578,0.5208,4304.3,4304.2,3.9233]
[1757097388895,0.7353,4304.3,4304.2,3.6069]
[1757097389792,0.7353,4304.3,4304.2,3.9233]
[1757097389994,0.7353,4304.3,4304.2,3.407]
[1757097390492,0.7353,4304.3,4304.2,3.6069]
[1757097390895,0.7353,4304.3,4304.2,3.9233]
[1757097392091,0.7353,4304.3,4304.2,3.6069]
[1757097392689,0.1222,4304.0,4303.9,0.5156]
[1757097392891,0.3222,4303.9,4303.7,3.2078]
[1757097393191,0.5208,4303.8,4303.7,3.9233]
[1757097393691,0.7353,4303.8,4303.7,3.9233]
[1757097394295,0.7353,4303.8,4303.7,3.2078]
[1757097394488,0.8575,4303.5,4303.4,0.1992]
[1757097394889,0.8575,4303.5,4303.4,0.3991]
[1757097395195,0.8575,4303.5,4303.4,0.7155]
[1757097395395,0.643,4304.0,4303.9,0.7155]
[1757097395794,0.8575,4304.0,4303.9,0.7155]
[1757097396190,0.8575,4304.0,4303.9,0.3991]
[1757097397392,0.8575,4304.0,4303.9,0.7155]
[1757097397599,0.7353,4304.0,4303.9,0.7155]
[1757097398294,0.5208,4304.0,4303.9,0.7155]
[1757097398493,0.3222,4304.3,4304.2,0.3991]
[1757097398700,0.3222,4304.3,4304.2,0.7155]
[1757097398901,0.3222,4304.3,4304.2,3.9233]
[1757097400297,0.3222,4304.3,4304.2,0.7155]
[1757097400895,0.7353,4304.3,4304.2,0.7155]
[1757097401398,0.3222,4304.2,4303.7,3.2078]
[1757097401701,0.5208,4303.8,4303.7,3.9233]
[1757097402399,0.3222,4303.8,4303.7,3.9233]
[1757097402596,0.3222,4304.0,4303.8,0.3164]
[1757097402802,0.3222,4304.0,4303.9,0.7155]
[1757097403103,0.8575,4304.0,4303.9,0.3991]
[1757097404403,0.8575,4304.0,4303.9,0.7155]
[1757097405600,0.1222,4304.5,4303.9,0.3991]
[1757097405805,0.1222,4304.5,4303.7,3.2078]
[1757097405806,0.5208,4304.1,4304.0,0.7155]
[1757097406807,0.7353,4304.1,4304.0,0.3991]
[1757097407802,0.1222,4304.5,4304.0,0.7155]
[1757097408109,0.3222,4304.3,4304.2,3.6069]
[1757097408508,0.3222,4304.3,4304.2,3.9129]
[1757097408807,0.722,4304.9,4304.8,0.3984]
[1757097409011,1.32697383,4304.9,4304.8,0.3984]
[1757097410110,1.32697383,4304.9,4304.8,0.1971]
[1757097411711,0.124,4304.5,4304.2,3.2078]
[1757097412007,0.541,4304.5,4304.4,0.3984]
[1757097412207,0.846,4304.5,4304.4,0.7044]
[1757097416201,0.846,4304.5,4304.4,0.3984]
[1757097416406,0.846,4304.5,4304.4,0.7044]
[1757097417307,0.5151,4304.5,4304.4,0.7044]
[1757097417803,0.1286,4305.0,4304.5,0.306]
[1757097418010,0.305,4304.8,4304.7,0.3984]
[1757097418196,0.5151,4304.8,4304.7,0.7044]
[1757097418599,0.722,4304.8,4304.7,0.7044]
[1757097418807,0.722,4304.8,4304.7,0.3984]
[1757097419002,0.846,4304.5,4304.4,0.1971]
[1757097419201,0.846,4304.5,4304.4,0.3984]
[1757097419508,0.846,4304.5,4304.4,0.7044]
[1757097419908,0.846,4304.5,4304.4,0.3984]
[1757097421306,0.846,4304.5,4304.4,0.1971]
[1757097421504,0.305,4304.4,4304.2,3.2078]
[1757097421809,0.305,4304.2,4303.3,3.5138]
[1757097422104,0.2101,4303.4,4303.3,3.9122]
[1757097422304,0.5151,4303.4,4303.3,3.9122]
[1757097422707,0.722,4303.4,4303.3,3.9122]
[1757097423011,0.5151,4303.4,4303.3,3.9122]
[1757097423311,0.305,4303.4,4303.3,3.9122]
[1757097424004,0.305,4303.9,4303.3,3.6062]
[1757097424217,0.846,4304.0,4303.9,0.1971]
[1757097425106,0.846,4304.0,4303.3,3.5138]
[1757097425107,0.124,4304.0,4303.3,3.5138]
[1757097425310,0.124,4304.0,4303.3,3.6062]
[1757097425311,0.722,4303.4,4303.3,3.6062]
[1757097425507,0.124,4303.0,4302.9,0.1971]
[1757097425704,0.846,4303.0,4302.9,0.7044]
[1757097425899,0.846,4303.0,4302.9,0.3984]
[1757097426207,0.846,4303.0,4302.9,0.1971]
[1757097426507,0.305,4303.6,4303.0,0.3488]
[1757097426706,1.37796751,4304.5,4304.2,0.306]
[1757097427015,0.417,4304.2,4304.1,0.1971]
[1757097427202,0.124,4303.0,4302.6,3.2078]
[1757097427507,0.722,4302.7,4302.6,0.3984]
[1757097427809,0.722,4302.2,4302.1,0.3984]
[1757097429507,0.722,4302.2,4302.1,0.7044]
[1757097429708,0.429,4302.5,4302.1,0.3984]
[1757097429913,0.5151,4302.5,4302.4,0.7044]
[1757097430109,0.722,4302.5,4301.5,3.3284]
[1757097430309,0.722,4300.6,4300.5,3.9122]
[1757097430508,0.305,4301.4,4300.9,0.306]
[1757097430810,0.417,4301.9,4301.8,0.3984]
[1757097431309,0.722,4301.9,4301.8,0.1971]
[1757097431906,0.5151,4301.2,4301.1,3.9122]
[1757097432108,0.5151,4301.4,4301.3,0.7044]
[1757097433614,0.722,4301.4,4301.3,0.7044]
[1757097433815,0.722,4301.4,4301.3,0.1971]
[1757097434017,0.305,4301.3,4301.1,3.2078]
[1757097434216,0.5151,4301.2,4301.1,0.3984]
[1757097434516,0.722,4301.2,4301.1,0.3984]
[1757097436917,0.124,4303.5,4301.5,0.1206]
[1757097437117,0.124,4305.0,4303.6,0.306]
[1757097437511,0.124,4305.0,4303.5,0.0938]
[1757097437512,0.541,4304.5,4304.0,0.306]
[1757097437712,0.541,4304.5,4303.9,3.5138]
[1757097437909,0.124,4305.5,4304.6,0.306]
[1757097438108,0.124,4306.5,4305.0,0.1276]
[1757097438311,0.1965,4305.6,4305.5,3.9203]
[1757097438515,0.4073,4305.6,4305.5,3.6213]
[1757097438715,3.2078,4306.3,4305.6,0.299]
[1757097438920,0.4073,4305.7,4305.5,3.2078]
[1757097439116,0.7085,4305.6,4305.5,3.2078]
[1757097439922,0.7085,4305.6,4305.5,3.4223]
[1757097441012,0.7085,4305.6,4305.5,3.2078]
[1757097441419,0.4217,4305.5,4304.9,3.2078]
[1757097441621,0.4977,4305.0,4304.9,3.9203]
[1757097441820,0.1965,4305.0,4304.9,3.9203]
[1757097442122,0.1205,4305.5,4304.9,3.6213]
[1757097442418,0.829,4305.5,4305.4,0.2145]
[1757097442618,0.829,4305.5,4305.0,0.299]
[1757097443721,0.1205,4305.5,4304.9,44.0078]
[1757097443921,0.1965,4305.0,4304.9,44.0078]
[1757097444123,0.1965,4305.0,4304.9,44.3068]
[1757097445120,0.4977,4305.0,4304.9,44.3068]
[1757097446420,0.7085,4305.0,4304.9,3.9203]
[1757097450231,0.1965,4305.0,4304.9,3.9203]
[1757097451030,0.3012,4305.6,4305.0,0.4165]
[1757097451328,0.7085,4306.3,4306.2,0.2145]
[1757097452119,0.4977,4306.3,4306.2,0.7125]
[1757097452530,0.7085,4306.3,4306.2,0.4135]
[1757097452730,0.7085,4306.3,4306.2,0.2145]
[1757097452930,0.4073,4306.3,4305.6,0.299]
[1757097453130,0.3012,4306.2,4306.1,0.2145]
[1757097453430,0.7085,4306.2,4306.1,0.2145]
[1757097454523,0.7085,4306.2,4306.1,0.7125]
[1757097454722,0.1205,4307.5,4306.1,0.7125]
[1757097454723,0.3012,4307.0,4306.7,0.299]
[1757097454923,3.826,4307.5,4307.4,0.4135]
[1757097455133,3.826,4307.5,4307.4,0.7125]
[1757097455435,0.4977,4307.5,4307.4,0.7125]
[1757097455630,0.1965,4307.5,4307.4,0.7125]
[1757097455836,0.3012,4307.9,4307.5,0.299]
[1757097456132,4.0368,4308.0,4307.9,0.199]
[1757097456327,0.3012,4307.9,4307.1,0.299]
[1757097456520,0.7085,4307.9,4307.8,0.2145]
[1757097456726,0.7085,4307.9,4307.4,0.299]
[1757097457028,0.7085,4307.9,4307.1,0.299]
[1757097457227,0.3012,4307.4,4306.8,41.099]
[1757097457434,0.7085,4307.4,4307.3,0.2145]
[1757097457937,0.4977,4307.4,4307.3,0.7125]
[1757097458235,0.7085,4307.4,4307.3,0.4135]
[1757097458435,0.7085,4307.4,4306.9,0.299]
[1757097458631,0.1205,4307.0,4306.9,0.299]
[1757097458827,0.3012,4306.9,4306.5,0.299]
[1757097459034,0.3012,4306.6,4306.5,0.7125]
[1757097459331,0.4977,4306.9,4306.8,0.7125]
[1757097459523,0.7085,4306.9,4306.8,0.4135]
[1757097459730,0.7085,4307.3,4307.2,0.2145]
[1757097459927,0.7085,4307.3,4306.9,0.299]
[1757097460327,0.7085,4307.2,4307.1,0.7125]
[1757097461333,0.3012,4307.1,4306.7,0.299]
[1757097461538,0.7085,4306.8,4306.7,0.7125]
[1757097461832,0.1965,4306.8,4306.7,0.7125]
[1757097462038,0.3012,4307.4,4306.8,0.299]
[1757097462240,0.7085,4307.4,4307.3,0.2145]
[1757097463042,0.7085,4307.4,4306.8,0.299]
[1757097464435,0.7085,4307.4,4306.6,3.2078]
[1757097464436,0.7085,4307.4,4307.3,0.4135]
[1757097465039,0.7085,4307.4,4307.0,0.299]
[1757097465239,0.7085,4307.4,4306.6,3.2078]
[1757097465459,0.3012,4307.3,4306.7,0.299]
[1757097465660,0.1965,4306.8,4306.7,0.7125]
[1757097466169,0.7085,4306.8,4306.7,0.7125]
[1757097466462,0.7085,4306.8,4306.6,3.2078]
[1757097466463,0.3012,4307.4,4306.8,0.299]
[1757097466664,0.1205,4307.5,4306.8,0.299]
[1757097466665,1.00973155,4307.3,4307.2,0.2145]
[1757097466859,1.31093155,4307.3,4307.2,0.2145]
[1757097467060,1.31093155,4307.3,4306.8,0.299]
[1757097467261,0.4977,4306.8,4306.7,0.7125]
[1757097467764,0.7085,4307.4,4307.3,0.2145]
[1757097467963,1.31116147,4307.4,4307.3,0.2145]
[1757097468164,0.7085,4306.7,4306.6,3.4223]
[1757097468358,0.7085,4306.7,4306.6,3.9269]
[1757097468562,0.1965,4306.7,4306.6,3.9269]
[1757097468761,0.3008,4306.9,4306.6,3.2078]
[1757097469057,0.2073,4306.9,4306.8,0.4029]
[1757097469266,1.11083117,4306.9,4306.8,0.4029]
[1757097469656,1.11083117,4306.9,4306.8,0.7085]
[1757097470456,1.32043117,4306.9,4306.8,0.7085]
[1757097471763,1.11083117,4306.9,4306.8,0.7085]
[1757097472464,0.60273117,4306.9,4306.6,3.2078]
[1757097472664,0.5428,4306.5,4306.4,0.2011]
[1757097472869,0.8436,4306.5,4306.4,0.2011]
[1757097473070,1.44633117,4306.5,4306.4,0.2011]
[1757097473471,0.81003117,4306.5,4306.4,0.7085]
[1757097473770,0.60273117,4306.5,4306.4,0.7085]
[1757097474162,0.60273117,4306.7,4306.4,0.4029]
[1757097474470,0.60273117,4306.6,4306.4,0.4029]
[1757097474666,0.60273117,4306.5,4306.4,0.4029]
[1757097474974,0.60273117,4306.5,4306.4,0.7085]
[1757097475667,0.4213,4307.5,4306.4,4.94070999]
[1757097475867,0.2073,4307.3,4306.9,3.2078]
[1757097476069,0.4267,4307.0,4306.9,3.2078]
[1757097476570,0.8436,4307.0,4306.9,3.2078]
[1757097479270,0.3008,4307.3,4306.9,3.2078]
[1757097479472,0.3278,4307.5,4306.9,3.2078]
[1757097479675,0.3008,4307.4,4306.9,3.2078]
[1757097479874,0.2073,4307.3,4306.9,3.2078]
[1757097480174,0.2073,4307.4,4306.9,3.2078]
[1757097480366,0.3008,4307.4,4306.9,3.2078]
[1757097480566,0.4213,4307.5,4306.9,3.2078]
[1757097481077,0.3278,4308.0,4306.9,3.2078]
[1757097481274,0.1259,4307.5,4307.4,3.2078]
[1757097481470,0.634,4307.5,4307.4,3.2078]
[1757097481675,0.8436,4307.5,4307.4,3.2078]
[1757097484777,0.8436,4307.5,4306.2,40.8]
[1757097484778,0.7177,4306.8,4306.7,3.2078]
[1757097485373,0.3008,4306.8,4306.7,3.2078]
[1757097489076,0.5081,4306.8,4306.7,3.2078]
[1757097495788,0.3008,4306.8,4306.7,3.2078]
[1757097496088,0.5081,4306.8,4306.7,3.2078]
[1757097496989,0.3008,4306.8,4306.7,3.2078]
[1757097501585,0.5257,4308.0,4307.9,0.2017]
[1757097501888,3.2078,4308.7,4307.9,3.7297]
[1757097502092,1.0063847,4308.4,4308.3,0.2017]
[1757097502287,1.2985847,4308.4,4308.3,0.2017]
[1757097502590,0.319,4308.0,4307.9,3.6036]
[1757097502793,0.6112,4308.0,4307.9,3.6036]
[1757097504191,0.2922,4308.4,4307.9,3.7297]
[1757097504379,0.89341922,4308.3,4308.2,0.5219]
[1757097504580,0.4181,4308.5,4308.2,0.3958]
[1757097504897,0.6163,4308.5,4308.4,0.3958]
[1757097505081,1.01928816,4308.5,4308.4,0.3958]
[1757097505386,0.8233,4308.5,4308.4,3.6036]
[1757097506099,1.4244657,4308.5,4308.4,0.3958]
[1757097506299,1.4244657,4308.5,4308.4,0.2017]
[1757097506597,0.413,4308.0,4307.9,0.5219]
[1757097507686,0.6112,4308.0,4307.9,0.3958]
[1757097507990,0.6112,4308.0,4307.9,0.5219]
[1757097508293,0.413,4308.0,4307.9,0.5219]
[1757097508694,0.2922,4308.0,4307.9,0.5219]
[1757097508988,0.6112,4308.0,4307.9,0.5219]
[1757097509193,0.6112,4308.0,4307.9,0.3958]
[1757097510283,0.6112,4308.0,4307.9,0.5213]
[1757097510994,0.413,4308.0,4307.9,0.5213]
[1757097511690,0.6163,4308.5,4308.4,0.3949]
[1757097512097,0.8233,4308.5,4308.4,0.3949]
[1757097512289,0.1208,4309.0,4308.4,0.3949]
[1757097512491,0.4622,4308.9,4308.8,3.7282]
[1757097513192,0.6604,4308.9,4308.8,3.6027]
[1757097513393,0.8674,4308.9,4308.8,3.6027]
[1757097513898,0.6604,4308.9,4308.8,3.6027]
[1757097514899,0.8674,4308.9,4308.8,3.6027]
[1757097515197,0.17,4308.9,4308.8,3.7282]
[1757097515794,0.6604,4308.9,4308.8,3.6027]
[1757097516001,0.8674,4308.9,4308.8,3.4086]
[1757097516201,0.8674,4308.9,4308.8,3.6027]
[1757097518802,0.8674,4308.9,4308.8,3.2078]
[1757097519101,0.8674,4308.9,4308.8,3.4086]
[1757097519306,0.8674,4308.9,4308.8,3.2078]
[1757097520106,0.6604,4308.9,4308.8,3.6027]
[1757097520300,0.4622,4308.9,4308.8,3.7282]
[1757097521206,0.4622,4308.9,4308.6,3.2078]
[1757097521207,0.2922,4308.8,4308.6,3.2078]
[1757097521405,0.17,4308.9,4308.6,3.2078]
[1757097521604,0.2922,4308.8,4308.6,3.2078]
[1757097521797,0.4904,4308.7,4308.6,3.2078]
[1757097522199,0.2922,4308.7,4308.6,44.0078]
[1757097522809,0.2922,4308.7,4308.6,40.8]
[1757097523106,0.319,4308.5,4308.1,3.2078]
[1757097523707,0.6974,4308.3,4308.2,40.8]
[1757097524009,0.4904,4308.3,4308.2,40.8]
[1757097524612,0.413,4307.5,4307.4,3.39318799]
[1757097524804,0.413,4307.5,4307.4,3.62531799]
[1757097525009,0.1208,4307.5,4307.4,3.62531799]
[1757097525203,0.1208,4307.5,4307.4,44.42531799]
[1757097525603,0.413,4307.5,4307.4,3.2078]
[1757097525801,0.2922,4306.9,4306.8,3.2078]
[1757097526711,0.2922,4306.8,4306.2,3.2078]
[1757097526908,0.1208,4307.0,4306.3,0.2322]
[1757097527301,0.1208,4307.0,4306.4,0.2322]
[1757097527606,0.413,4306.5,4306.2,44.18959768]
[1757097527809,0.413,4306.5,4306.3,0.2322]
[1757097528205,0.413,4306.5,4306.2,44.18959768]
[1757097528206,0.3101,4306.4,4306.2,44.18959768]
[1757097528405,0.3101,4306.4,4306.3,0.23222]
[1757097528807,0.3101,4306.4,4306.2,44.18959768]
[1757097529220,0.1208,4306.5,4306.2,44.18959768]
[1757097529409,0.3101,4306.3,4306.2,3.2078]
[1757097529905,0.3101,4306.3,4306.2,44.0078]
[1757097531710,0.7121,4306.3,4306.2,3.2078]
[1757097533312,40.7922,4306.0,4305.9,0.18603177]
[1757097533517,40.9183,4306.0,4305.5,3.2078]
[1757097533718,0.3101,4305.9,4305.5,3.2078]
[1757097534214,40.9183,4306.0,4305.5,3.39266421]
[1757097534412,0.3101,4305.9,4305.5,3.39266421]
[1757097534915,40.9183,4306.0,4305.5,3.39266421]
[1757097535215,0.3101,4305.9,4305.5,3.39266421]
[1757097535405,40.9183,4306.0,4305.5,3.39266421]
[1757097535605,0.3101,4305.9,4305.5,3.39266421]
[1757097536318,0.3101,4305.9,4305.5,3.81067421]
[1757097537208,40.9183,4306.0,4305.5,3.81067421]
[1757097537209,40.9183,4306.0,4305.5,10.1330242]
[1757097537615,40.9183,4306.0,4305.7,0.41798]
[1757097537917,40.9183,4306.0,4305.5,4.85571421]
[1757097538218,0.3101,4305.9,4305.5,4.85571421]
[1757097538717,0.3101,4305.9,4305.5,3.81066421]
[1757097538918,0.3101,4305.9,4305.5,4.85571421]
[1757097539315,40.9183,4306.0,4305.5,3.81066421]
[1757097539518,0.3101,4305.9,4305.5,3.81066421]
[1757097539718,40.9183,4306.0,4305.5,4.85571421]
[1757097540107,0.3101,4305.9,4305.5,4.85571421]
[1757097540308,0.3101,4305.9,4305.5,3.39266421]
[1757097540514,40.9183,4306.0,4305.5,3.81067421]
[1757097540717,40.9183,4306.0,4305.5,4.85572421]
[1757097540912,0.3101,4305.9,4305.5,5.90076421]
[1757097541119,10.42059873,4306.0,4305.8,0.41798]
[1757097541314,10.42059873,4306.0,4305.8,1.46296]
[1757097541514,10.73069873,4306.0,4305.8,0.41798]
[1757097541815,0.3101,4305.9,4305.8,0.41798]
[1757097542721,10.73069873,4306.0,4305.8,5.46296]
[1757097543110,0.187859,4306.0,4305.9,5.78898]
[1757097543314,0.3286,4307.0,4306.9,0.1166]
[1757097543726,0.3286,4307.0,4306.9,40.9166]
[1757097545512,0.6387,4307.0,4306.9,40.9166]
[1757097548426,0.6387,4307.0,4306.9,0.1166]
[1757097548722,0.644,4306.5,4306.4,0.1166]
[1757097548927,0.644,4306.5,4306.4,40.9166]
[1757097549527,0.4362,4306.5,4306.4,40.9166]
[1757097550217,0.4362,4306.5,4306.4,40.953]
[1757097550421,0.1208,4307.0,4306.4,40.9166]
[1757097550820,0.3101,4306.9,4306.4,40.9166]
[1757097551223,0.1208,4307.0,4306.4,40.9166]
[1757097551428,0.1208,4307.0,4306.4,41.33452]
[1757097551626,0.3101,4306.9,4306.8,0.1166]
[1757097551834,0.3101,4307.2,4307.1,0.1166]
[1757097552231,0.0053,4308.0,4307.2,0.41782]
[1757097552538,0.0053,4308.0,4307.3,3.2078]
[1757097557344,0.4073,4308.0,4307.9,0.4017]
[1757097557844,0.4073,4308.0,4307.4,5.371]
[1757097558036,0.4073,4308.0,4307.9,0.2052]
[1757097558232,0.4073,4308.0,4307.9,0.4017]
[1757097558438,3.2078,4308.3,4307.9,0.4017]
[1757097558640,0.2144,4308.0,4307.9,0.4017]
[1757097559041,0.3934,4308.0,4307.9,0.4017]
[1757097559236,0.5952,4308.0,4307.9,0.4017]
[1757097559441,0.1261,4308.5,4307.9,0.4017]
[1757097560147,0.5952,4308.0,4307.9,0.4017]
[1757097563748,0.5952,4308.0,4307.9,0.2052]
[1757097564542,0.5952,4308.0,4307.3,3.2078]
[1757097567545,11.9922,4307.0,4306.9,0.82368]
[1757097567750,11.9922,4307.0,4306.9,4.03148]
[1757097568439,11.9922,4307.0,4306.9,44.83148]
[1757097568641,11.9922,4307.0,4306.9,44.4136]
[1757097569245,11.9922,4307.0,4306.9,44.83148]
[1757097569849,11.9922,4307.0,4306.9,44.4136]
[1757097570238,11.9922,4307.0,4306.9,44.83148]
[1757097570443,11.9922,4307.0,4306.9,44.4136]
[1757097570743,11.9922,4307.0,4306.9,48.83148]
[1757097571249,11.9922,4307.0,4306.9,48.4136]
[1757097572246,11.9922,4307.0,4306.9,44.4136]
[1757097574049,12.1712,4307.0,4306.9,41.2058]
[1757097574448,12.1712,4307.0,4305.9,2.08930719]
[1757097574449,19.7952,4307.0,4305.9,2.08930719]
[1757097574756,0.2144,4305.8,4305.7,0.4058]
[1757097575453,0.2144,4305.8,4305.7,41.2058]
[1757097577652,0.2144,4305.8,4305.7,41.0113]
[1757097578054,0.4162,4305.3,4305.2,0.2113]
[1757097578552,0.4162,4305.3,4305.2,41.0113]
[1757097578751,0.4162,4305.3,4305.2,41.19815247]
[1757097579653,0.4162,4305.3,4305.2,40.8]
[1757097579654,7.624,4305.3,4305.2,40.8]
[1757097579954,7.624,4305.3,4304.1,3.2078]
[1757097579955,0.179,4305.0,4304.1,3.2078]
[1757097580351,0.5952,4305.0,4304.9,0.2113]
[1757097580551,0.5952,4305.0,4304.9,0.4058]
[1757097580752,3.2078,4305.3,4304.9,0.4058]
[1757097580957,3.4222,4305.3,4305.2,0.4058]
[1757097581159,3.2078,4305.3,4305.2,0.4058]
[1757097581554,3.2078,4305.8,4305.2,0.4058]
[1757097582566,0.4162,4305.3,4305.2,0.4058]